Workbook

Sheet Title
M7: 2245

Sheet Podcast Content
A1: John Campbell Session at Ignite
L47: 3108
L48: 42
L49: =L48/L47 -> 0.01351351351
L50: =1/L49 -> 74

Sheet BennuModel
A1: Chesley et al. (2014) Calculations | F1: Bill's Bad Assumptions | G1: Original | H1: OSIRIS-REx Adjusted | K1: =_xlfn.NORM.DIST(H4,$H$4,$H$5,FALSE) -> 4.285186367e-06 | L1: =50/K1 -> 11668103.96 | V1: # of Impacts | W1: =SUM(W10:W180) -> 36 | AF1: Describe the results
A2: 82 "keyholes" - if Bennu here in 2135 | F2: Bennu Min | G2: 92981 | H2: =H4-3*H5 -> 92982 | V2: Chance of imact | W2: =100000/W1 -> 2777.777778 | AF2: MIN | AG2: =MAX(1,MIN(AC11:AC110)) -> 29
A3: then impact with Earth in 2180-2196 | F3: Bennu Max | G3: 651571 | H3: =H4+3*H2 -> 651222 | J3: Position | K3: X | L3: Y | V3: Not this | AF3: MAX | AG3: =MAX(AC11:AC110) -> 67 | AH3: =100000/AG3 -> 1492.537313
A4: (there are another 100+ keyholes too small to plot) | F4: Bennu Mean | G4: 372276 | H4: =G22 -> 372276 | J4: 1 | K4: =K5-$H$8 -> 92982 | L4: =_xlfn.NORM.DIST(K4,$H$4,$H$5,FALSE)*L$1 -> 0.5554498269 | V4: =RANDBETWEEN($H$2,$H$3) -> 219862 | W4: =_xlfn.FORMULATEXT(V4) -> =RANDBETWEEN($H$2,$H$3) | AF4: RANGE | AG4: =MAX(AG3-AG2,10) -> 38
A5: Bennu Location 2135 | B5: Y Value | C5: Width (km) | F5: Bennu StDev | G5: 93098 | H5: =G5/I10 -> 93098 | J5: 2 | K5: 102291.8 | L5: =_xlfn.NORM.DIST(K5,$H$4,$H$5,FALSE)*L$1 -> 0.7460393035 | V5: This | AF5: Bin Size | AG5: =ROUNDUP(AG4/10,0) -> 4
A6: 92981 | B6: 10 | C6: 0.17 | J6: 3 | K6: 111601.6 | L6: 0.9920547372 | V6: =_xlfn.NORM.INV(RAND(),$H$4,$H$5) -> 485536.0276 | W6: =_xlfn.FORMULATEXT(V6) -> =NORM.INV(RAND(),$H$4,$H$5)
A7: 93280 | B7: 30 | C7: 0.32 | J7: 4 | K7: 120911.4 | L7: 1.306070493
A8: 99162 | B8: 30 | C8: 0.25 | F8: Jump | H8: =(H5*3)/30 -> 9309.8 | J8: 5 | K8: 130221.2 | L8: 1.702372737 | V8: Run the system 100K times | AB8: Run the 100K model 100 times!
A9: 105731 | B9: 10 | C9: 0.12 | J9: 6 | K9: 139531 | L9: 2.196846681 | V9: Bennu 2135 Location | W9: Impact? | AF9: Bins | AG9: # of Times
A10: 105945 | B10: 40 | C10: 3.59 | E10: Accuracy | I10: 1 | J10: 7 | K10: 148840.8 | L10: 2.806738142 | W10: =SUM(VLOOKUP(_xlfn.NORM.INV(_xlfn.RANDARRAY(100000),$H$4,$H$5),$N$23:$O$179,2,TRUE)) -> 36 | AC10: =W10 -> 36 | AF10: 0 | AG10: =FREQUENCY(AC11:AC110,AF10:AF20) -> 0 | AH10: =IFERROR(100000/AF10,"None") -> None
A11: 148127 | B11: 20 | C11: 0.19 | E11: (1 to 25) | J11: 8 | K11: 158150.6 | L11: 3.550267687 | AC11: 50 | AF11: =AG2 -> 29 | AG11: 3 | AH11: =IFERROR(100000/AF11,"None") -> 3448.275862
A12: 153125 | B12: 50 | C12: 6.29 | E12: Shift | I12: 50 | J12: 9 | K12: 167460.4 | L12: 4.446080873 | AC12: 59 | AF12: =AF11+$AG$5 -> 33 | AG12: 3 | AH12: 3030.30303
A13: 153481 | B13: 20 | C13: 0.21 | E13: (0 to 100) | J13: 10 | K13: 176770.2 | L13: 5.512526265 | AC13: 29 | AF13: =AF12+$AG$5 -> 37 | AG13: 9 | AH13: 2702.702703
A14: 161203 | B14: 40 | C14: 1.53 | F14: Three Std Dev | G14: =3*H5 -> 279294 | J14: 11 | K14: 186080 | L14: 6.766764162 | AC14: 45 | AF14: 41 | AG14: 16 | AH14: 2439.02439
A15: 162322 | B15: 10 | C15: 0.15 | D15: =AVERAGE(A6,A83) -> 372276 | F15: Min from Center | G15: =372276-G14 -> 92982 | J15: 12 | K15: 195389.8 | L15: 8.223722829 | AC15: 47 | AF15: 45 | AG15: 28 | AH15: 2222.222222
A16: 171554 | B16: 40 | C16: 5.15 | D16: =D15/6 -> 62046 | F16: Max from Center | G16: =372276+G14 -> 651570 | H16: =+A83-G16 -> 1 | J16: 13 | K16: 204699.6 | L16: 9.894934954 | AC16: 52 | AF16: 49 | AG16: 21 | AH16: 2040.816327
A17: 171842 | B17: 10 | C17: 0.17 | D17: 101643 | F17: Extra Left | G17: =MAX(0,G15-92981) -> 1 | H17: =+G15-G17 -> 92981 | J17: 14 | K17: 214009.4 | L17: 11.78730383 | AC17: 47 | AF17: 53 | AG17: 12 | AH17: 1886.792453
A18: 174357 | B18: 40 | C18: 0.66 | D18: =+D15/D17 -> 3.662583749 | F18: Extra Right | G18: =A83-G16 -> 1 | J18: 15 | K18: 223319.2 | L18: 13.90186502 | AC18: 51 | AF18: 57 | AG18: 6 | AH18: 1754.385965
A19: 174935 | B19: 30 | C19: 0.4 | F19: Delta from 50 | G19: =I12-50 -> 0 | J19: 16 | K19: 232629 | L19: 16.23262337 | AC19: 39 | AF19: 61 | AG19: 1 | AH19: 1639.344262
A20: 177766 | B20: 20 | C20: 0.17 | F20: Pctage | G20: =G19/50 -> 0 | J20: 17 | K20: 241938.8 | L20: 18.76555494 | N20: Keyhole Table | AC20: 43 | AF20: 65 | AG20: 0 | AH20: 1538.461538
A21: 185793 | B21: 20 | C21: 0.19 | F21: Delta | G21: =G20*G17 -> 0 | J21: 18 | K21: 251248.6 | L21: 21.47786791 | AC21: 37 | AG21: 1 | AH21: None
A22: 186415 | B22: 50 | C22: 19.84 | F22: Adj Mean | G22: =G4+G21 -> 372276 | J22: 19 | K22: 260558.4 | L22: 24.3376128 | N22: Start | O22: Impact | AC22: 37
A23: 186996 | B23: 20 | C23: 0.21 | J23: 20 | K23: 269868.2 | L23: 27.30372133 | N23: -9999999 | O23: 0 | AC23: 56
A24: 191883 | B24: 20 | C24: 0.2 | F24: Six Std | G24: =K64-K4 -> 558588 | J24: 21 | K24: 279178 | L24: 30.32653299 | N24: 92980.915 | O24: 1 | AC24: 45
A25: 208524 | B25: 30 | C25: 0.53 | F25: Total Range | G25: =A83-A6 -> 558590 | J25: 22 | K25: 288487.8 | L25: 33.34884054 | N25: 92981.085 | O25: 0 | AC25: 44
A26: 211276 | B26: 10 | C26: 0.11 | F26: Extra | G26: =G25-G24 -> 2 | J26: 23 | K26: 297797.6 | L26: 36.30745185 | N26: 93279.84 | O26: 1 | AC26: 39
A27: 235014 | B27: 20 | C27: 0.17 | F27: Adj | G27: =+G26*G20/2 -> 0 | J27: 24 | K27: 307107.4 | L27: 39.13522691 | N27: 93280.16 | O27: 0 | AC27: 45
A28: 271070 | B28: 50 | C28: 13.32 | F28: Adj Mean | G28: =372276+G27 -> 372276 | J28: 25 | K28: 316417.2 | L28: 41.76351057 | N28: 99161.875 | O28: 1 | AC28: 45
A29: 272823 | B29: 10 | C29: 0.12 | J29: 26 | K29: 325727 | L29: 44.12484513 | N29: 99162.125 | O29: 0 | AC29: 41
A30: 273950 | B30: 10 | C30: 0.11 | F30: Hold StdDev | G30: 101643.8213 | J30: 27 | K30: 335036.8 | L30: 46.15581732 | N30: 105730.94 | O30: 1 | AC30: 47
A31: 274243 | B31: 30 | C31: 0.21 | J31: 28 | K31: 344346.6 | L31: 47.79987409 | N31: 105731.06 | O31: 0 | AC31: 30
A32: 275569 | B32: 40 | C32: 0.77 | J32: 29 | K32: 353656.4 | L32: 49.00993367 | N32: 105943.205 | O32: 1 | AC32: 29
A33: 276541 | B33: 20 | C33: 0.2 | J33: 30 | K33: =K34-$H$8 -> 362966.2 | L33: 49.75062396 | N33: 105946.795 | O33: 0 | AC33: 48
A34: 278479 | B34: 40 | C34: 2.76 | J34: 31 | K34: =H4 -> 372276 | L34: 50 | N34: 148126.905 | O34: 1 | AC34: 45
A35: 279096 | B35: 20 | C35: 0.18 | J35: 32 | K35: =K34+$H$8 -> 381585.8 | L35: 49.75062396 | N35: 148127.095 | O35: 0 | AC35: 49
A36: 279590 | B36: 40 | C36: 4.96 | J36: 33 | K36: =K35+$H$8 -> 390895.6 | L36: 49.00993367 | N36: 153121.855 | O36: 1 | AC36: 44
A37: 295318 | B37: 50 | C37: 9.42 | J37: 34 | K37: 400205.4 | L37: 47.79987409 | N37: 153128.145 | O37: 0 | AC37: 37
A38: 302940 | B38: 20 | C38: 0.2 | J38: 35 | K38: 409515.2 | L38: 46.15581732 | N38: 153480.895 | O38: 1 | AC38: 41
A39: 316352 | B39: 40 | C39: 3.48 | J39: 36 | K39: 418825 | L39: 44.12484513 | N39: 153481.105 | O39: 0 | AC39: 47
A40: 316680 | B40: 20 | C40: 0.19 | J40: 37 | K40: 428134.8 | L40: 41.76351057 | N40: 161202.235 | O40: 1 | AC40: 32
A41: 326599 | B41: 20 | C41: 0.19 | J41: 38 | K41: 437444.6 | L41: 39.13522691 | N41: 161203.765 | O41: 0 | AC41: 42
A42: 339506 | B42: 40 | C42: 2.73 | J42: 39 | K42: 446754.4 | L42: 36.30745185 | N42: 162321.925 | O42: 1 | AC42: 52
A43: 339838 | B43: 10 | C43: 0.13 | J43: 40 | K43: 456064.2 | L43: 33.34884054 | N43: 162322.075 | O43: 0 | AC43: 44
A44: 343541 | B44: 20 | C44: 0.17 | J44: 41 | K44: 465374 | L44: 30.32653299 | N44: 171551.425 | O44: 1 | AC44: 29
A45: 343783 | B45: 10 | C45: 0.11 | J45: 42 | K45: 474683.8 | L45: 27.30372133 | N45: 171556.575 | O45: 0 | AC45: 37
A46: 347699 | B46: 40 | C46: 0.78 | J46: 43 | K46: 483993.6 | L46: 24.3376128 | N46: 171841.915 | O46: 1 | AC46: 41
A47: 349704 | B47: 40 | C47: 1.8 | J47: 44 | K47: 493303.4 | L47: 21.47786791 | N47: 171842.085 | O47: 0 | AC47: 46
A48: 367729 | B48: 30 | C48: 0.32 | J48: 45 | K48: 502613.2 | L48: 18.76555494 | N48: 174356.67 | O48: 1 | AC48: 50
A49: 368877 | B49: 50 | C49: 16.67 | J49: 46 | K49: 511923 | L49: 16.23262337 | N49: 174357.33 | O49: 0 | AC49: 41
A50: 370007 | B50: 30 | C50: 0.56 | J50: 47 | K50: 521232.8 | L50: 13.90186502 | N50: 174934.8 | O50: 1 | AC50: 43
A51: 391326 | B51: 30 | C51: 0.6 | J51: 48 | K51: 530542.6 | L51: 11.78730383 | N51: 174935.2 | O51: 0 | AC51: 51
A52: 392308 | B52: 50 | C52: 5.97 | J52: 49 | K52: 539852.4 | L52: 9.894934954 | N52: 177765.915 | O52: 1 | AC52: 55
A53: 393200 | B53: 10 | C53: 0.11 | J53: 50 | K53: 549162.2 | L53: 8.223722829 | N53: 177766.085 | O53: 0 | AC53: 44
A54: 405893 | B54: 30 | C54: 0.64 | J54: 51 | K54: 558472 | L54: 6.766764162 | N54: 185792.905 | O54: 1 | AC54: 38
A55: 429187 | B55: 30 | C55: 0.51 | J55: 52 | K55: 567781.8 | L55: 5.512526265 | N55: 185793.095 | O55: 0 | AC55: 46
A56: 430234 | B56: 20 | C56: 0.2 | J56: 53 | K56: 577091.6 | L56: 4.446080873 | N56: 186405.08 | O56: 1 | AC56: 40
A57: 449272 | B57: 50 | C57: 12.23 | J57: 54 | K57: 586401.4 | L57: 3.550267687 | N57: 186424.92 | O57: 0 | AC57: 46
A58: 459392 | B58: 10 | C58: 0.12 | J58: 55 | K58: 595711.2 | L58: 2.806738142 | N58: 186995.895 | O58: 1 | AC58: 41
A59: 475391 | B59: 50 | C59: 7.74 | J59: 56 | K59: 605021 | L59: 2.196846681 | N59: 186996.105 | O59: 0 | AC59: 43
A60: 479545 | B60: 50 | C60: 9.54 | J60: 57 | K60: 614330.8 | L60: 1.702372737 | N60: 191882.9 | O60: 1 | AC60: 41
A61: 486578 | B61: 50 | C61: 25.51 | J61: 58 | K61: 623640.6 | L61: 1.306070493 | N61: 191883.1 | O61: 0 | AC61: 55
A62: 511097 | B62: 50 | C62: 24.9 | J62: 59 | K62: 632950.4 | L62: 0.9920547372 | N62: 208523.735 | O62: 1 | AC62: 45
A63: 517881 | B63: 40 | C63: 0.75 | J63: 60 | K63: 642260.2 | L63: 0.7460393035 | N63: 208524.265 | O63: 0 | AC63: 38
A64: 527510 | B64: 40 | C64: 0.89 | J64: 61 | K64: 651570 | L64: 0.5554498269 | N64: 211275.945 | O64: 1 | AC64: 39
A65: 528840 | B65: 30 | C65: 0.65 | N65: 211276.055 | O65: 0 | AC65: 43
A66: 534125 | B66: 20 | C66: 0.2 | N66: 235013.915 | O66: 1 | AC66: 42
A67: 534310 | B67: 20 | C67: 0.19 | N67: 235014.085 | O67: 0 | AC67: 47
A68: 534527 | B68: 30 | C68: 0.45 | N68: 271063.34 | O68: 1 | AC68: 37
A69: 536801 | B69: 10 | C69: 0.13 | N69: 271076.66 | O69: 0 | AC69: 45
A70: 536823 | B70: 30 | C70: 0.21 | N70: 272822.94 | O70: 1 | AC70: 42
A71: 537259 | B71: 10 | C71: 0.12 | N71: 272823.06 | O71: 0 | AC71: 52
A72: 537324 | B72: 10 | C72: 0.11 | N72: 273949.945 | O72: 1 | AC72: 51
A73: 539780 | B73: 30 | C73: 0.23 | N73: 273950.055 | O73: 0 | AC73: 53
A74: 541921 | B74: 40 | C74: 0.77 | N74: 274242.895 | O74: 1 | AC74: 40
A75: 542397 | B75: 40 | C75: 1.72 | N75: 274243.105 | O75: 0 | AC75: 47
A76: 543753 | B76: 30 | C76: 0.37 | N76: 275568.615 | O76: 1 | AC76: 48
A77: 545747 | B77: 30 | C77: 0.26 | N77: 275569.385 | O77: 0 | AC77: 67
A78: 558169 | B78: 50 | C78: 11.57 | N78: 276540.9 | O78: 1 | AC78: 56
A79: 561278 | B79: 50 | C79: 12.31 | N79: 276541.1 | O79: 0 | AC79: 42
A80: 565865 | B80: 50 | C80: 20.2 | N80: 278477.62 | O80: 1 | AC80: 42
A81: 618399 | B81: 50 | C81: 17.45 | N81: 278480.38 | O81: 0 | AC81: 54
A82: 636299 | B82: 50 | C82: 54.23 | N82: 279095.91 | O82: 1 | AC82: 36
A83: 651571 | B83: 40 | C83: 4.35 | N83: 279096.09 | O83: 0 | AC83: 46
N84: 279587.52 | O84: 1 | AC84: 45
N85: 279592.48 | O85: 0 | AC85: 36
N86: 295313.29 | O86: 1 | AC86: 49
N87: 295322.71 | O87: 0 | AC87: 45
N88: 302939.9 | O88: 1 | AC88: 52
N89: 302940.1 | O89: 0 | AC89: 47
N90: 316350.26 | O90: 1 | AC90: 45
N91: 316353.74 | O91: 0 | AC91: 41
N92: 316679.905 | O92: 1 | AC92: 36
N93: 316680.095 | O93: 0 | AC93: 47
N94: 326598.905 | O94: 1 | AC94: 52
N95: 326599.095 | O95: 0 | AC95: 46
N96: 339504.635 | O96: 1 | AC96: 44
N97: 339507.365 | O97: 0 | AC97: 54
N98: 339837.935 | O98: 1 | AC98: 49
N99: 339838.065 | O99: 0 | AC99: 47
N100: 343540.915 | O100: 1 | AC100: 42
N101: 343541.085 | O101: 0 | AC101: 47
N102: 343782.945 | O102: 1 | AC102: 40
N103: 343783.055 | O103: 0 | AC103: 40
N104: 347698.61 | O104: 1 | AC104: 37
N105: 347699.39 | O105: 0 | AC105: 42
N106: 349703.1 | O106: 1 | AC106: 50
N107: 349704.9 | O107: 0 | AC107: 49
N108: 367728.84 | O108: 1 | AC108: 43
N109: 367729.16 | O109: 0 | AC109: 43
N110: 368868.665 | O110: 1 | AC110: 31
N111: 368885.335 | O111: 0
N112: 370006.72 | O112: 1
N113: 370007.28 | O113: 0
N114: 391325.7 | O114: 1
N115: 391326.3 | O115: 0
N116: 392305.015 | O116: 1
N117: 392310.985 | O117: 0
N118: 393199.945 | O118: 1
N119: 393200.055 | O119: 0
N120: 405892.68 | O120: 1
N121: 405893.32 | O121: 0
N122: 429186.745 | O122: 1
N123: 429187.255 | O123: 0
N124: 430233.9 | O124: 1
N125: 430234.1 | O125: 0
N126: 449265.885 | O126: 1
N127: 449278.115 | O127: 0
N128: 459391.94 | O128: 1
N129: 459392.06 | O129: 0
N130: 475387.13 | O130: 1
N131: 475394.87 | O131: 0
N132: 479540.23 | O132: 1
N133: 479549.77 | O133: 0
N134: 486565.245 | O134: 1
N135: 486590.755 | O135: 0
N136: 511084.55 | O136: 1
N137: 511109.45 | O137: 0
N138: 517880.625 | O138: 1
N139: 517881.375 | O139: 0
N140: 527509.555 | O140: 1
N141: 527510.445 | O141: 0
N142: 528839.675 | O142: 1
N143: 528840.325 | O143: 0
N144: 534124.9 | O144: 1
N145: 534125.1 | O145: 0
N146: 534309.905 | O146: 1
N147: 534310.095 | O147: 0
N148: 534526.775 | O148: 1
N149: 534527.225 | O149: 0
N150: 536800.935 | O150: 1
N151: 536801.065 | O151: 0
N152: 536822.895 | O152: 1
N153: 536823.105 | O153: 0
N154: 537258.94 | O154: 1
N155: 537259.06 | O155: 0
N156: 537323.945 | O156: 1
N157: 537324.055 | O157: 0
N158: 539779.885 | O158: 1
N159: 539780.115 | O159: 0
N160: 541920.615 | O160: 1
N161: 541921.385 | O161: 0
N162: 542396.14 | O162: 1
N163: 542397.86 | O163: 0
N164: 543752.815 | O164: 1
N165: 543753.185 | O165: 0
N166: 545746.87 | O166: 1
N167: 545747.13 | O167: 0
N168: 558163.215 | O168: 1
N169: 558174.785 | O169: 0
N170: 561271.845 | O170: 1
N171: 561284.155 | O171: 0
N172: 565854.9 | O172: 1
N173: 565875.1 | O173: 0
N174: 618390.275 | O174: 1
N175: 618407.725 | O175: 0
N176: 636271.885 | O176: 1
N177: 636326.115 | O177: 0
N178: 651568.825 | O178: 1
N179: 651573.175 | O179: 0

Sheet Sheet1
A1: Revisiting Excel Hash

Sheet Wrap Up
A1: Topics in this Episode
B3: Forecast model with 100,000 RAND, NORM.INV, VLOOKUP & 1 SUM
B4: Replaced with 1 formula using RANDARRAY(100000)
C5: Average | D5: Trial 1 | E5: Trial 2 | F5: Trial 3
B6: 200K Cells | C6: =AVERAGE(D6:F6) -> 10.76 | D6: 10.8 | E6: 10.75 | F6: 10.73
B7: 1 Formula | C7: =AVERAGE(D7:F7) -> 5.373333333 | D7: 5.3 | E7: 5.43 | F7: 5.39
C8: =C7/C6 -> 0.4993804213
B14: To download this workbook: https://www.mrexcel.com/download-center/2018/10/streamlining-the-bennu-model-with-arrays.xlsx
B15: List of upcoming seminars: https://www.mrexcel.com/press-appearances/
B17: To download the workbook from today's video, visit the URL in the YouTube description
B19: Title Image Photo Credit: Photo by Roseanna Smith on Unsplash
